bitfinex/quotes_BTCUSD_20250829
["timestamp","ask_amount","ask_price","bid_price","bid_amount"]
[1756439684148,0.17857142,112000.0,111990.0,0.47462819]
[1756439684359,0.17855569,112010.0,111990.0,0.47157819]
[1756439684584,0.34512616,112000.0,111990.0,0.32394819]
[1756439684785,0.34512616,112000.0,111990.0,0.47462819]
[1756439685128,0.17857142,112000.0,111990.0,0.47362819]
[1756439685329,0.52369758,112000.0,111990.0,0.47162819]
[1756439685696,0.52369758,112000.0,111990.0,0.47262819]
[1756439686131,0.52369758,112000.0,111990.0,0.47162819]
[1756439686279,0.52369758,112000.0,111990.0,0.47362819]
[1756439686683,0.52369758,112000.0,111990.0,0.47558819]
[1756439687141,0.17857142,112000.0,111990.0,0.47658819]
[1756439687345,0.17855569,112010.0,111990.0,0.47658819]
[1756439687545,0.34512616,112000.0,111990.0,0.47658819]
[1756439687754,0.52368185,112010.0,111990.0,0.47658819]
[1756439688106,0.17855569,112010.0,111990.0,0.47658819]
[1756439688395,0.52368185,112010.0,111990.0,0.82071435]
[1756439688619,0.17857142,112000.0,111990.0,0.47558819]
[1756439688835,0.86368185,112010.0,112000.0,0.00311]
[1756439689051,0.86368185,112010.0,112000.0,0.00525]
[1756439689822,0.51855569,112010.0,112000.0,0.00525]
[1756439690027,0.86368185,112010.0,112000.0,0.00311]
[1756439690228,0.51855569,112010.0,112000.0,0.00311]
[1756439690425,0.86368185,112010.0,112000.0,0.00311]
[1756439691245,0.17857142,112000.0,111990.0,0.32100819]
[1756439691445,0.17857142,112000.0,111990.0,0.81370435]
[1756439691678,0.17857142,112000.0,111990.0,0.81584435]
[1756439692074,0.17857142,112000.0,111990.0,0.32314819]
[1756439692275,0.52369758,112000.0,111990.0,0.47382819]
[1756439692483,0.52369758,112000.0,111990.0,0.14242082]
[1756439692698,0.52369758,112000.0,111990.0,0.47368819]
[1756439693469,0.52369758,112000.0,111990.0,0.14442082]
[1756439693714,0.52369758,112000.0,111990.0,0.14131082]
[1756439693930,0.52369758,112000.0,111990.0,0.47157819]
[1756439694517,0.52369758,112000.0,111990.0,0.29299082]
[1756439694731,0.52369758,112000.0,111990.0,0.47157819]
[1756439695434,0.52369758,112000.0,111990.0,0.47468819]
[1756439695634,0.52369758,112000.0,111990.0,0.29610082]
[1756439695936,0.52369758,112000.0,111990.0,0.47468819]
[1756439696688,0.17857142,112000.0,111990.0,0.47468819]
[1756439696889,0.52369758,112000.0,111990.0,0.47682819]
[1756439697092,0.17857142,112000.0,111990.0,0.47682819]
[1756439697240,0.52369758,112000.0,111990.0,0.47682819]
[1756439698992,0.17857142,112000.0,111990.0,0.47682819]
[1756439699194,0.52369758,112000.0,111990.0,0.47682819]
[1756439700405,0.52369758,112000.0,111990.0,0.29824082]
[1756439701256,0.52369758,112000.0,111990.0,0.47682819]
[1756439702319,0.52369758,112000.0,111990.0,0.32614819]
[1756439702557,0.17857142,112000.0,111990.0,0.47682819]
[1756439702681,0.52369758,112000.0,111990.0,0.47682819]
[1756439704942,0.52369758,112000.0,111990.0,0.29824082]
[1756439705245,0.17857142,112000.0,111990.0,0.29824082]
[1756439705503,0.86369758,112000.0,111990.0,0.29610082]
[1756439705713,1.27853645,112000.0,111990.0,0.22236]
[1756439706615,1.27853645,112000.0,111990.0,0.07168]
[1756439706826,1.27853645,112000.0,111990.0,0.22236]
[1756439707015,1.27853645,112000.0,111990.0,0.21936]
[1756439707601,0.58828413,112000.0,111990.0,0.21936]
[1756439707771,1.27853645,112000.0,111990.0,0.21936]
[1756439707973,0.51857142,112000.0,111990.0,0.22461]
[1756439708172,0.86369758,112000.0,111990.0,0.22461]
[1756439708395,0.86369758,112000.0,111990.0,0.22247]
[1756439709018,0.86369758,112000.0,111990.0,0.22347]
[1756439709198,1.20882374,112000.0,111990.0,0.22347]
[1756439709378,1.20882374,112000.0,111990.0,0.22247]
[1756439710024,1.29712006,112000.0,111990.0,0.21936]
[1756439710338,1.29712006,112000.0,111990.0,0.22136]
[1756439710468,1.29712006,112000.0,111990.0,0.22236]
[1756439710907,1.29712006,112000.0,111990.0,0.07168]
[1756439711328,1.29712006,112000.0,111990.0,0.22232]
[1756439712068,1.29712006,112000.0,111990.0,0.21932]
[1756439712215,1.29712006,112000.0,111990.0,0.22032]
[1756439712626,1.5539499,112000.0,111990.0,0.22032]
[1756439713045,1.5807989,112000.0,111990.0,0.22032]
[1756439713795,1.67746986,112000.0,111990.0,0.001]
[1756439713996,1.7028012,112000.0,111990.0,0.15164]
[1756439714204,1.72583343,112000.0,111990.0,0.15164]
[1756439714413,1.83716723,112000.0,111990.0,0.15164]
[1756439715184,1.83088582,112000.0,111990.0,0.15164]
[1756439715382,1.48590462,112000.0,111990.0,0.15164]
[1756439715603,1.48590462,112000.0,111990.0,0.15064]
[1756439715930,1.63754462,112000.0,111990.0,0.15064]
[1756439716281,1.63654462,112000.0,111990.0,0.15064]
[1756439716633,0.51860332,111980.0,111970.0,0.14242082]
[1756439716811,0.86380196,111980.0,111970.0,0.29310842]
[1756439716990,0.95209828,111980.0,111970.0,0.29310842]
[1756439718967,0.95209828,111980.0,111970.0,0.29510842]
[1756439719605,0.95209828,111980.0,111970.0,0.29610842]
[1756439720920,0.95209828,111980.0,111970.0,0.14346842]
[1756439721135,0.95209828,111980.0,111970.0,0.29099842]
[1756439721789,0.95209828,111980.0,111970.0,0.29392842]
[1756439722509,0.86380196,111980.0,111970.0,0.29392842]
[1756439723618,0.86380196,111980.0,111970.0,0.14328842]
[1756439723833,0.86380196,111980.0,111970.0,0.0697276]
[1756439724027,0.86380196,111980.0,111970.0,0.2203676]
[1756439724228,0.89065596,111980.0,111970.0,0.2203676]
[1756439724567,0.97895228,111980.0,111970.0,0.2203676]
[1756439726201,1.17275692,111980.0,111970.0,0.2203676]
[1756439730252,1.26105324,111980.0,111970.0,0.0697276]
[1756439730617,1.26105324,111980.0,111970.0,0.2203676]
[1756439730913,1.26105324,111980.0,111970.0,0.1516876]
[1756439731114,1.60625188,111980.0,111970.0,0.1516876]
[1756439731327,1.26105324,111980.0,111970.0,0.1516876]
[1756439731523,1.6271907,111980.0,111970.0,0.1516876]
[1756439731757,1.28199206,111980.0,111970.0,0.1516876]
[1756439731967,1.29134767,111980.0,111970.0,0.1516876]
[1756439732174,1.28299206,111980.0,111970.0,0.0010476]
[1756439732352,1.2913477,111980.0,111970.0,0.1506876]
[1756439732689,1.63654634,111980.0,111970.0,0.1506876]
[1756439733429,1.2913477,111980.0,111970.0,0.1506876]
[1756439733855,1.2913477,111980.0,111970.0,0.1536176]
[1756439735447,1.9819836,111980.0,111970.0,0.1536176]
[1756439736240,1.98825225,111980.0,111970.0,0.1536176]
[1756439736523,1.9819836,111980.0,111970.0,0.1536176]
[1756439737276,1.9882528,111980.0,111970.0,0.1536176]
[1756439739390,2.00497616,111980.0,111970.0,0.1536176]
[1756439739607,2.00497616,111980.0,111970.0,0.1506876]
[1756439740412,2.00497616,111980.0,111970.0,0.1536176]
[1756439740818,2.00497616,111980.0,111970.0,0.0029776]
[1756439741025,1.81117152,111980.0,111970.0,0.1536176]
[1756439741647,1.81119606,111980.0,111970.0,4.76e-05]
[1756439741821,3.02300194,111980.0,111970.0,4.76e-05]
[1756439742111,3.04544856,111980.0,111970.0,4.76e-05]
[1756439742314,2.00961737,111980.0,111970.0,4.76e-05]
[1756439742725,2.00962203,111980.0,111970.0,4.76e-05]
[1756439744306,3.04545657,111980.0,111970.0,4.76e-05]
[1756439744553,2.40490021,111980.0,111970.0,4.76e-05]
[1756439744830,2.4241839,111980.0,111970.0,4.76e-05]
[1756439745181,3.11474026,111980.0,111970.0,4.76e-05]
[1756439747440,1.73381754,111980.0,111970.0,4.76e-05]
[1756439748405,1.71137092,111980.0,111970.0,4.76e-05]
[1756439750142,1.03079126,111980.0,111970.0,0.0052476]
[1756439750342,1.01150757,111980.0,111970.0,0.0052476]
[1756439750802,1.03244639,111980.0,111970.0,0.0052476]
[1756439751310,0.67150757,111980.0,111970.0,0.0052476]
[1756439751800,1.01150757,111980.0,111970.0,0.0052476]
[1756439752007,1.01149864,111980.0,111970.0,0.0052476]
[1756439752185,1.01149864,111980.0,111970.0,0.1559276]
[1756439752333,1.00313284,111980.0,111970.0,0.1559276]
[1756439752537,1.01149936,111980.0,111970.0,0.1559276]
[1756439752775,1.0115008,111980.0,111970.0,0.1559276]
[1756439755103,1.0115008,111980.0,111970.0,0.0052476]
[1756439755298,1.0115008,111980.0,111970.0,0.1559276]
[1756439755542,1.0115008,111980.0,111970.0,0.0052476]
[1756439755722,1.0115008,111980.0,111970.0,0.1559276]
[1756439755884,1.4531008,111980.0,111970.0,0.1559276]
[1756439756465,1.4531008,111980.0,111970.0,0.0052476]
[1756439760881,1.4531008,111980.0,111970.0,4.76e-05]
[1756439761083,1.54139712,111980.0,111970.0,0.0032276]
[1756439761289,1.67740737,111980.0,111970.0,0.0032276]
[1756439761509,1.6920584,111980.0,111970.0,0.0032276]
[1756439762167,1.68368645,111980.0,111970.0,0.0032276]
[1756439762341,1.69205861,111980.0,111970.0,0.0052476]
[1756439764351,1.45312229,111980.0,111970.0,0.0052476]
[1756439764576,1.45312238,111980.0,111970.0,0.0052476]
[1756439765187,1.09100497,111980.0,111970.0,0.0052476]
[1756439765445,1.43637815,111980.0,111970.0,0.0052476]
[1756439766491,1.43009907,111980.0,111970.0,0.0052476]
[1756439767475,1.43637792,111980.0,111970.0,0.0052476]
[1756439767849,1.43637804,111980.0,111970.0,0.0052476]
[1756439769912,1.43637804,111980.0,111970.0,0.0032276]
[1756439770075,1.64156598,111980.0,111970.0,4.76e-05]
[1756439770529,1.64156598,111980.0,111970.0,0.0032276]
[1756439770917,1.64156598,111980.0,111970.0,4.76e-05]
[1756439771123,1.66726366,111980.0,111970.0,4.76e-05]
[1756439771295,1.66935678,111980.0,111970.0,4.76e-05]
[1756439771629,1.68400839,111980.0,111970.0,4.76e-05]
[1756439772195,1.68400867,111980.0,111970.0,4.76e-05]
[1756439773415,1.68400867,111980.0,111970.0,0.0052476]
[1756439773624,1.24240867,111980.0,111970.0,0.0052476]
[1756439774430,1.24240867,111980.0,111970.0,0.0032276]
[1756439774864,0.89703713,111980.0,111970.0,0.0032276]
[1756439775017,1.24241031,111980.0,111970.0,4.76e-05]
[1756439779341,1.26334913,111980.0,111970.0,4.76e-05]
[1756439780249,1.11270913,111980.0,111970.0,4.76e-05]
[1756439780447,1.26334913,111980.0,111970.0,0.0051976]
[1756439781226,1.11270913,111980.0,111970.0,0.0051976]
[1756439781466,1.24660315,111980.0,111970.0,0.0051976]
[1756439781815,1.26338462,111980.0,111970.0,0.0051976]
[1756439782398,1.26030495,111980.0,111970.0,0.0051976]
[1756439782598,1.26030543,111980.0,111970.0,0.0051976]
[1756439782999,1.23460775,111980.0,111970.0,0.0051976]
[1756439784234,1.18005981,111980.0,111970.0,0.0051976]
[1756439784575,1.18005981,111980.0,111970.0,0.0032376]
[1756439785779,1.18005981,111980.0,111970.0,4.76e-05]
[1756439786748,1.55113067,111980.0,111970.0,4.76e-05]
[1756439791479,1.89628803,111980.0,111970.0,4.76e-05]
[1756439791751,1.98458435,111980.0,111970.0,4.76e-05]
[1756439791982,1.98458887,111980.0,111970.0,4.76e-05]
[1756439793165,1.98458901,111980.0,111970.0,4.76e-05]
[1756439794394,1.78414157,111980.0,111970.0,4.76e-05]
[1756439794595,1.87243789,111980.0,111970.0,4.76e-05]
[1756439794805,1.81099857,111980.0,111970.0,4.76e-05]
[1756439795997,1.81099857,111980.0,111970.0,0.0032376]
[1756439797534,1.81095857,111980.0,111970.0,0.0032376]
[1756439798976,1.81096298,111980.0,111970.0,0.0032376]
[1756439799207,1.8992593,111980.0,111970.0,0.0032376]
[1756439801267,1.89926084,111980.0,111970.0,0.0032376]
[1756439802496,1.87410645,111980.0,111970.0,0.0032376]
[1756439802940,1.8992667,111980.0,111970.0,0.0032376]
[1756439803793,1.74866684,111980.0,111970.0,0.0032376]
[1756439803998,1.89926722,111980.0,111970.0,0.0032376]
[1756439806183,1.89926722,111980.0,111970.0,4.76e-05]
[1756439809249,1.89926722,111980.0,111970.0,0.0032676]
[1756439812803,1.89926722,111980.0,111970.0,4.76e-05]
[1756439813221,1.89926606,111980.0,111970.0,4.76e-05]
[1756439813731,1.89926606,111980.0,111970.0,0.0032676]
[1756439814125,1.89926603,111980.0,111970.0,0.0032676]
[1756439816758,1.89926595,111980.0,111970.0,0.0032676]
[1756439816917,1.89922595,111980.0,111970.0,0.0032676]
[1756439820292,1.89922595,111980.0,111970.0,0.0053376]
[1756439820686,1.89922595,111980.0,111970.0,0.0032676]
[1756439821126,1.89918595,111980.0,111970.0,0.0032676]
[1756439822314,1.89289594,111980.0,111970.0,0.0032676]
[1756439822501,1.89918536,111980.0,111970.0,0.0032676]
[1756439825935,1.89918541,111980.0,111970.0,0.0032676]
[1756439827464,1.87348773,111980.0,111970.0,0.0053376]
[1756439827793,1.78519141,111980.0,111970.0,0.0053376]
[1756439832394,1.78515141,111980.0,111970.0,0.0053376]
[1756439832638,1.76837856,111980.0,111970.0,0.0053376]
[1756439832838,1.78515133,111980.0,111970.0,0.0053376]
[1756439833735,1.63467133,111980.0,111970.0,0.0053376]
[1756439835284,1.78515133,111980.0,111970.0,0.0053376]
[1756439835703,1.87344765,111980.0,111970.0,0.0053376]
[1756439839564,1.85667488,111980.0,111970.0,0.0053376]
[1756439839763,1.87344492,111980.0,111970.0,0.0053376]
[1756439841070,1.6346686,111980.0,111970.0,0.0053376]
[1756439843038,1.6346674,111980.0,111970.0,0.0053376]
[1756439843241,1.28936411,111980.0,111970.0,0.0053376]
[1756439843562,1.26420974,111980.0,111970.0,0.0053376]
[1756439843768,1.28936351,111980.0,111970.0,0.0053376]
[1756439843970,1.28936336,111980.0,111970.0,0.0053376]
[1756439845637,1.6346646,111980.0,111970.0,0.0053376]
[1756439846547,1.63466416,111980.0,111970.0,0.0053376]
[1756439846907,0.59876044,111980.0,111970.0,0.0053376]
[1756439847230,1.63466416,111980.0,111970.0,0.0053376]
[1756439853287,1.60322239,111980.0,111970.0,0.0053376]
[1756439853509,1.63466439,111980.0,111970.0,0.0053376]
[1756439854365,1.63466459,111980.0,111970.0,0.0053376]
[1756439861666,1.70382806,111980.0,111970.0,0.0053376]
[1756439863737,1.67238586,111980.0,111970.0,0.0053376]
[1756439863878,1.70383532,111980.0,111970.0,0.0053376]
[1756439864472,1.85423532,111980.0,111970.0,0.0053376]
[1756439864656,1.83955891,111980.0,111970.0,0.0053376]
[1756439864850,1.85423537,111980.0,111970.0,0.0053376]
[1756439865247,1.7850719,111980.0,111970.0,0.0053376]
[1756439865623,1.6346719,111980.0,111970.0,4.76e-05]
[1756439866447,1.6346719,111980.0,111970.0,0.0031176]
[1756439867530,1.7850319,111980.0,111970.0,0.0031176]
[1756439868184,1.7850319,111980.0,111970.0,4.76e-05]
[1756439868390,1.80172573,111980.0,111970.0,4.76e-05]
[1756439870791,1.80172513,111980.0,111970.0,4.76e-05]
[1756439871007,1.80172513,111980.0,111970.0,0.0031276]
[1756439872707,1.79333892,111980.0,111970.0,0.0031276]
[1756439872914,1.80172471,111980.0,111970.0,0.0031276]
[1756439874117,1.79543326,111980.0,111970.0,0.0031276]
[1756439874330,1.8017223,111980.0,111970.0,0.0031276]
[1756439874685,1.8017222,111980.0,111970.0,0.0031276]
[1756439880789,1.78495095,111980.0,111970.0,0.0031276]
[1756439880971,1.80172049,111980.0,111970.0,0.0031276]
[1756439883322,1.77866121,111980.0,111970.0,0.0031276]
[1756439883503,1.80171993,111980.0,111970.0,0.0031276]
[1756439883943,1.80163993,111980.0,111970.0,0.0031276]
[1756439890319,1.79535119,111980.0,111970.0,0.0031276]
[1756439890472,1.80164008,111980.0,111970.0,0.0031276]
[1756439893816,1.7869662,111980.0,111970.0,0.0031276]
[1756439894040,1.80164222,111980.0,111970.0,0.0031276]
[1756439894380,1.79325662,111980.0,111970.0,0.0031276]
[1756439894622,1.80164238,111980.0,111970.0,0.0031276]
[1756439894826,1.8016425,111980.0,111970.0,0.0031276]
[1756439897569,1.53322046,111980.0,111970.0,0.0031276]
[1756439898007,1.53322046,111980.0,111970.0,0.0051876]
[1756439898146,1.53318046,111980.0,111970.0,0.0051876]
[1756439899654,1.87318046,111980.0,111970.0,0.0051876]
[1756439900684,1.8731873,111980.0,111970.0,0.0051876]
[1756439903410,1.8722923,111980.0,111970.0,0.0051876]
[1756439904234,1.86600168,111980.0,111970.0,0.0051876]
[1756439904436,1.87229232,111980.0,111970.0,0.0051876]
[1756439905019,1.87229231,111980.0,111970.0,0.0051876]
[1756439909267,1.87229232,111980.0,111970.0,0.0051876]
[1756439911117,1.90569192,111980.0,111970.0,0.0051876]
[1756439912699,1.90569192,111980.0,111970.0,4.76e-05]
[1756439912920,1.93160778,111980.0,111970.0,4.76e-05]
[1756439913135,1.93160778,111980.0,111970.0,0.0031876]
[1756439913343,1.93160778,111980.0,111970.0,4.76e-05]
[1756439913548,1.94254571,111980.0,111970.0,4.76e-05]
[1756439913753,2.9868372,111980.0,111970.0,4.76e-05]
[1756439914110,1.95093348,111980.0,111970.0,4.76e-05]
[1756439914858,1.94821732,111980.0,111970.0,4.76e-05]
[1756439914987,1.97337311,111980.0,111970.0,4.76e-05]
[1756439916811,3.00927683,111980.0,111970.0,4.76e-05]
[1756439917017,0.51863522,111960.0,111950.0,0.07377082]
[1756439917262,1.65122097,111960.0,111950.0,0.07377082]
[1756439917466,1.65122097,111960.0,111950.0,0.07573082]
[1756439917931,1.76477553,111960.0,111950.0,0.07573082]
[1756439918656,0.17865118,111950.0,111940.0,0.00314]
[1756439918850,1.20925366,111950.0,111940.0,0.00314]
[1756439918991,1.20925366,111950.0,111940.0,0.0051]
[1756439918992,1.23516952,111950.0,111940.0,0.0051]
[1756439919195,0.17866714,111940.0,111930.0,0.13931082]
[1756439919398,1.21457086,111940.0,111930.0,0.00314]
[1756439919600,1.21457086,111940.0,111930.0,0.0051]
[1756439920027,1.2539941,111940.0,111930.0,0.0051]
[1756439920416,0.93560441,111940.0,111930.0,0.0051]
[1756439921449,0.99011905,111940.0,111930.0,0.0051]
[1756439921650,1.33542029,111940.0,111930.0,0.0051]
[1756439921820,0.99011905,111940.0,111930.0,0.0051]
[1756439922021,0.99011905,111940.0,111930.0,0.0061]
[1756439922301,0.99011905,111940.0,111930.0,0.0071]
[1756439923246,1.33542029,111940.0,111930.0,0.0071]
[1756439924593,1.76371661,111940.0,111930.0,0.0071]
[1756439924763,0.67329825,111940.0,111930.0,0.0071]
[1756439924957,1.36390073,111940.0,111930.0,0.0071]
[1756439925403,1.36390073,111940.0,111930.0,0.0061]
[1756439925604,1.70920197,111940.0,111930.0,0.0051]
[1756439928340,1.70920197,111940.0,111930.0,0.00314]
[1756439928574,1.79749829,111940.0,111930.0,0.00314]
[1756439929143,1.79749829,111940.0,111930.0,0.00521]
[1756439929706,1.79749829,111940.0,111930.0,0.00314]
[1756439930270,1.79749829,111940.0,111930.0,0.00521]
[1756439930675,1.79749829,111940.0,111930.0,0.00314]
[1756439931610,1.79749829,111940.0,111930.0,0.00521]
[1756439931815,1.79749829,111940.0,111930.0,0.00314]
[1756439932020,0.1786831,111930.0,111920.0,0.1533]
[1756439932217,0.86928558,111930.0,111920.0,0.15537]
[1756439932632,0.9575819,111930.0,111920.0,0.15537]
[1756439932840,0.9844479,111930.0,111920.0,0.15537]
[1756439933702,0.9844479,111930.0,111920.0,0.15737]
[1756439934906,0.9844479,111930.0,111920.0,0.00721]
[1756439935124,0.9844479,111930.0,111920.0,0.15737]
[1756439935663,0.9844479,111930.0,111920.0,0.00721]
[1756439936360,0.89615158,111930.0,111920.0,0.00721]
[1756439936784,1.33775158,111930.0,111920.0,0.00721]
[1756439940288,1.36366744,111930.0,111920.0,0.00721]
[1756439940555,1.36366744,111930.0,111920.0,0.15737]
[1756439940761,1.36366744,111930.0,111920.0,0.00514]
[1756439940762,1.79196376,111930.0,111920.0,0.00514]
[1756439940959,1.87435635,111930.0,111920.0,0.00514]
[1756439941903,1.87435635,111930.0,111920.0,0.00314]
[1756439942395,0.17869907,111920.0,111910.0,0.21884]
[1756439942599,0.89521741,111920.0,111910.0,0.22091]
[1756439943037,0.89521741,111920.0,111910.0,0.22405]
[1756439943239,0.89616955,111920.0,111910.0,0.22405]
[1756439944008,0.89616955,111920.0,111910.0,0.07389]
[1756439944209,0.89616955,111920.0,111910.0,0.22405]
[1756439945279,0.89616955,111920.0,111910.0,0.07389]
[1756439945481,0.89616955,111920.0,111910.0,0.22198]
[1756439945686,0.51871503,111910.0,111900.0,0.177028]
[1756439945912,0.86401627,111910.0,111900.0,0.177028]
[1756439946061,0.51871503,111910.0,111900.0,0.177028]
[1756439946281,0.86401627,111910.0,111900.0,0.182238]
[1756439946461,0.89088427,111910.0,111900.0,0.182238]
[1756439947090,0.89088427,111910.0,111900.0,0.032078]
[1756439947317,0.89088427,111910.0,111900.0,0.184638]
[1756439948733,0.54558303,111910.0,111900.0,0.184638]
[1756439948931,0.89088427,111910.0,111900.0,0.184638]
[1756439949544,0.89088427,111910.0,111900.0,0.185638]
[1756439949975,0.89088427,111910.0,111900.0,0.186638]
[1756439954227,0.54558303,111910.0,111900.0,0.186638]
[1756439954408,0.89088427,111910.0,111900.0,0.186638]
[1756439955017,0.86401627,111910.0,111900.0,0.186638]
[1756439955569,0.97451849,111930.0,111910.0,0.17871503]
[1756439955752,1.31451849,111930.0,111920.0,0.22868373]
[1756439955955,1.31451849,111930.0,111920.0,0.22645]
[1756439956158,1.31451849,111930.0,111920.0,0.40514907]
[1756439956950,1.31451849,111930.0,111920.0,0.43201307]
[1756439957348,1.31451849,111930.0,111920.0,0.43301307]
[1756439958494,1.30558434,111930.0,111920.0,0.43301307]
[1756439959346,1.12690124,111930.0,111920.0,0.43301307]
[1756439959583,1.30558434,111930.0,111920.0,0.43301307]
[1756439959785,1.30648034,111930.0,111920.0,0.43301307]
[1756439960444,1.30648034,111930.0,111920.0,0.43289307]
[1756439960801,1.30558434,111930.0,111920.0,0.43289307]
[1756439961201,1.30558434,111930.0,111920.0,0.28049307]
[1756439961569,1.30558434,111930.0,111920.0,0.254154]
[1756439962322,1.30558434,111930.0,111920.0,0.254114]
[1756439962540,1.65088558,111930.0,111920.0,0.254114]
[1756439962951,1.30558434,111930.0,111920.0,0.43281307]
[1756439963357,1.30558434,111930.0,111920.0,0.254114]
[1756439963770,1.30558434,111930.0,111920.0,0.101794]
[1756439964042,1.65088558,111930.0,111920.0,0.099724]
[1756439964189,1.65088558,111930.0,111920.0,0.251964]
[1756439964768,1.65088558,111930.0,111920.0,0.254104]
[1756439965162,1.65088558,111930.0,111920.0,0.22724]
[1756439965401,1.65088558,111930.0,111920.0,0.22506]
[1756439966348,1.65088558,111930.0,111920.0,0.2272]
[1756439967223,1.65088558,111930.0,111920.0,0.075]
[1756439967224,0.9602831,111930.0,111920.0,0.075]
[1756439967387,1.65088558,111930.0,111920.0,0.22712]
[1756439973976,1.65088558,111930.0,111920.0,0.22164]
[1756439974610,1.65088558,111930.0,111920.0,0.2247]
[1756439975230,1.65088558,111930.0,111920.0,0.22684]
[1756439978505,1.65088558,111930.0,111920.0,0.22668]
[1756439979221,1.65088558,111930.0,111920.0,0.07492]
[1756439979439,1.65088558,111930.0,111920.0,0.06972]
[1756439979662,1.65088558,111930.0,111920.0,0.22144]
[1756439980384,1.65088558,111930.0,111920.0,0.001]
[1756439980563,1.65088558,111930.0,111920.0,0.15272]
[1756439980992,1.67680144,111930.0,111920.0,0.001]
[1756439981473,2.02210268,111930.0,111920.0,0.15272]
[1756439982879,1.67680144,111930.0,111920.0,0.001]
[1756439983080,2.2225835,111930.0,111920.0,0.001]
[1756439983282,2.40569077,111930.0,111920.0,0.001]
[1756439983741,2.40569086,111930.0,111920.0,0.001]
[1756439984169,0.17869907,111920.0,111910.0,0.15168]
[1756439984383,1.24051865,111920.0,111910.0,0.15168]
[1756439986536,0.51871503,111910.0,111900.0,0.06872]
[1756439986747,1.20931751,111910.0,111900.0,0.06872]
[1756439986922,1.20931751,111910.0,111900.0,0.22028]
[1756439987368,1.20931751,111910.0,111900.0,0.22334]
[1756439987787,1.20931751,111910.0,111900.0,0.22534]
[1756439988220,1.32352969,111910.0,111900.0,0.22534]
[1756439988436,1.32352969,111910.0,111900.0,0.22434]
[1756439989238,1.32352969,111910.0,111900.0,0.22334]
[1756439989448,1.32352969,111910.0,111900.0,0.22434]
[1756439989651,1.32352969,111910.0,111900.0,0.22128]
[1756439990816,1.32352969,111910.0,111900.0,0.22424]
[1756439991618,1.32352969,111910.0,111900.0,0.07268]
[1756439991820,1.32352969,111910.0,111900.0,0.2242]
[1756439992024,1.23523337,111910.0,111900.0,0.2242]
[1756439992644,1.23523337,111910.0,111900.0,0.22124]
[1756439993261,1.23523337,111910.0,111900.0,0.2242]
[1756439993562,1.23523337,111910.0,111900.0,0.22416]
[1756439995629,1.23523337,111910.0,111900.0,0.2212]
[1756439996240,1.23523337,111910.0,111900.0,0.21416]
[1756439996422,1.32352969,111910.0,111900.0,0.21416]
[1756439996617,1.23523337,111910.0,111900.0,0.21416]
[1756439998771,1.03884546,111910.0,111900.0,0.21416]
[1756439998980,1.21756049,111910.0,111900.0,0.21416]
[1756440000218,1.65916049,111910.0,111900.0,0.21416]
[1756440001256,1.63324463,111910.0,111900.0,0.21618]
[1756440001461,0.94264215,111910.0,111900.0,0.21618]
[1756440001667,1.28794339,111910.0,111900.0,0.21618]
[1756440003513,1.28794339,111910.0,111900.0,0.394911]
[1756440003983,1.28794339,111910.0,111900.0,0.21618]
[1756440009267,1.28794339,111910.0,111900.0,0.21586]
[1756440009862,1.28794339,111910.0,111900.0,0.21578]
[1756440012206,1.28794339,111910.0,111900.0,0.0647]
[1756440012506,1.28794339,111910.0,111900.0,0.21578]
[1756440013951,1.28794339,111910.0,111900.0,0.0647]
[1756440014378,1.28794339,111910.0,111900.0,0.2157]
[1756440014605,1.63324463,111910.0,111900.0,0.2157]
[1756440015440,1.63324463,111910.0,111900.0,0.21072]
[1756440015742,1.63324463,111910.0,111900.0,0.21368]
[1756440015945,1.63324463,111910.0,111900.0,0.0647]
[1756440016224,1.63324463,111910.0,111900.0,0.21072]
[1756440016603,1.63324463,111910.0,111900.0,0.21068]
[1756440017446,1.63396735,111910.0,111900.0,0.21068]
[1756440017597,1.65988321,111910.0,111900.0,0.21068]
[1756440019035,1.65988321,111910.0,111900.0,0.05972]
[1756440019263,1.65988321,111910.0,111900.0,0.21064]
[1756440021294,1.65988321,111910.0,111900.0,0.05972]
[1756440021465,1.65988321,111910.0,111900.0,0.2106]
[1756440024360,1.28830475,111910.0,111900.0,0.21585]
[1756440024563,1.28830475,111910.0,111900.0,0.21382]
[1756440025839,0.94264215,111910.0,111900.0,0.21585]
[1756440026075,1.28830475,111910.0,111900.0,0.21585]
[1756440027028,1.28830475,111910.0,111900.0,0.21577]
[1756440029553,1.63396735,111910.0,111900.0,0.21577]
[1756440036626,0.94264215,111910.0,111900.0,0.394501]
[1756440036839,1.28830475,111910.0,111900.0,0.394501]
[1756440037043,1.28830475,111910.0,111900.0,0.421368]
[1756440037441,1.63381295,111910.0,111900.0,0.421368]
[1756440039760,1.4174091,111910.0,111900.0,0.421368]
[1756440039962,1.31148583,111910.0,111900.0,0.421368]
[1756440040789,1.31148583,111910.0,111900.0,0.394501]
[1756440041238,1.31148583,111910.0,111900.0,0.421368]
[1756440042347,1.65148583,111910.0,111900.0,0.270568]
[1756440042553,1.65148583,111910.0,111900.0,0.421088]
[1756440049928,0.7871854,111910.0,111900.0,0.50938432]
[1756440052276,0.3455854,111910.0,111900.0,0.50938432]
[1756440052780,0.3455854,111910.0,111900.0,0.51038432]
[1756440052988,0.3455854,111910.0,111900.0,0.50938432]
[1756440053336,0.3455854,111910.0,111900.0,0.51038432]
[1756440053537,0.3455854,111910.0,111900.0,0.35986432]
[1756440053732,0.3455854,111910.0,111900.0,0.51038432]
[1756440056966,0.86428495,111920.0,111910.0,0.17871503]
[1756440057121,1.20987035,111920.0,111910.0,0.18378503]
[1756440058380,1.20987035,111920.0,111910.0,0.21064903]
[1756440061963,0.51869955,111920.0,111910.0,0.21064903]
[1756440062176,0.18761725,111930.0,111910.0,0.29894535]
[1756440062376,0.53323344,111940.0,111920.0,0.33232907]
[1756440062540,0.6855854,111930.0,111920.0,0.42062539]
[1756440062736,0.6855854,111930.0,111920.0,0.42258539]
[1756440063799,0.6855854,111930.0,111920.0,0.44944639]
[1756440064964,0.8642685,111930.0,111920.0,0.44944639]
[1756440065784,0.8642685,111930.0,111920.0,0.29892639]
[1756440066202,1.2098539,111930.0,111920.0,0.44940639]
[1756440067445,1.2098539,111930.0,111920.0,0.29892639]
[1756440067645,1.2098539,111930.0,111920.0,0.44940639]
[1756440071503,0.34,111930.0,111920.0,0.44940639]
[1756440071709,0.3455854,111930.0,111920.0,0.44940639]
[1756440073025,4.755e-05,111940.0,111930.0,0.1786831]
[1756440073269,0.69121835,111940.0,111930.0,0.34076942]
[1756440073865,0.69121835,111940.0,111930.0,0.36762842]
[1756440074271,0.86988549,111940.0,111930.0,0.51810842]
[1756440074500,0.17871469,111940.0,111930.0,0.51810842]
[1756440074857,4.755e-05,111940.0,111930.0,0.51810842]
[1756440075060,0.69121835,111940.0,111930.0,0.51810842]
[1756440075668,0.69221835,111940.0,111930.0,0.51810842]
[1756440075918,0.00104755,111940.0,111930.0,0.51810842]